Cogmind - Beta 9.4 @@@ ROGUE MODE // 2020.03.15 @ 07:50:38 Player: UlyssesB Result: Smashed by cave-in Performance ------------- Evolutions (1) 500 Regions Visited (4) 800 Robots Destroyed (63) 315 Value Destroyed (1313) 1313 Prototype IDs (4) 80 Alien Tech Used (0) 0 Bonus (8) 8 TOTAL SCORE: 3016 Bonus ------- High Alert Combat Kills 8 Cogmind --------- Core Integrity 0/400 Matter 280/300 Energy 64/100 System Corruption 0% Temperature Cool (0) Movement Core (50) Location -9/Mines Parts ------- > --- POWER (1) -------- (None) > --- PROPULSION (2) --- Improved Treads Improved Treads > --- UTILITY (4) ------ Cooling System > --- WEAPON (2) ------- (None) > --- INVENTORY (4) ---- Heavy Ion Engine Light Nuclear Core Light Armor Plating Advanced Beam Cannon Peak State ------------ > --- POWER ------------ Heavy Ion Engine > --- PROPULSION ------- Improved Treads Improved Treads > --- UTILITY ---------- Cooling System Large Storage Unit Visual Processing Unit Light Armor Plating > --- WEAPON ----------- Improved Medium Laser Improved Medium Laser > --- INVENTORY -------- Heavy Ion Engine Light Nuclear Core Improved Treads Improved Treads Heat Sink Cooling System Light Armor Plating Light Armor Plating Advanced Beam Cannon Advanced Beam Cannon [Rating: 21] Favorites ----------- Power Light Nuclear Core Engine Ion Engine Power Core Light Nuclear Core Propulsion Light Treads Treads Light Treads Leg Aluminum Leg Wheel Wheel Utility Large Storage Unit Device Heat Sink Storage Large Storage Unit Processor Visual Processing Unit Protection Light Armor Plating Weapon Light Assault Rifle Energy Gun Improved Medium Laser Energy Cannon Advanced Beam Cannon Ballistic Gun Light Assault Rifle Ballistic Cannon Light Cannon Build | -11 -10 -10 -9 -9 ------- Run | Scr Mat Min Mat Min Slots Evolved 2 | . . . 2 . Power . | . . . . . Propulsion . | . . . . . Utility 2 | . . . 2 . Weapon . | . . . . . Parts Attached 33 | . 5 5 18 5 Power 6 | . . 2 4 . Engine 4 | . . 1 3 . Core 2 | . . 1 1 . Reactor . | . . . . . Propulsion 9 | . 2 1 4 2 Treads 8 | . 2 . 4 2 Leg . | . . . . . Wheel 1 | . . 1 . . Hover . | . . . . . Flight . | . . . . . Utility 9 | . 2 . 5 2 Device 3 | . . . 2 1 Storage 1 | . 1 . . . Processor 1 | . 1 . . . Hackware . | . . . . . Protection 4 | . . . 3 1 Artifact . | . . . . . Weapon 9 | . 1 2 5 1 Energy Gun 5 | . . . 5 . Energy Cannon 1 | . . . . 1 Ballistic Gun 2 | . . 2 . . Ballistic Cannon 1 | . 1 . . . Launcher . | . . . . . Special Weapon . | . . . . . Impact Weapon . | . . . . . Slashing Weapon . | . . . . . Piercing Weapon . | . . . . . Special Melee Weapon . | . . . . . Unidentified Prototypes 1 | . . . 1 . Parts Lost 20 | . . 3 8 9 Power 2 | . . . 1 1 Propulsion 5 | . . 1 2 2 Utility 5 | . . . 2 3 Weapon 8 | . . 2 3 3 Highest Loss Streak 7 | . . 2 6 7 Average Slot Usage (%) 94 | . 96 99 88 92 Engine 7 | . 14 5 6 10 Core 4 | . . 8 4 . Treads 21 | . 26 19 20 20 Wheel 3 | . . 7 . . Device 3 | . . . 7 11 Storage 13 | . 18 14 11 11 Processor 11 | . 6 14 11 10 Protection 2 | . . . 5 9 Energy Gun 6 | . . . 15 11 Ballistic Gun 8 | . 14 13 3 . Ballistic Cannon 8 | . 13 14 2 . Naked Turns . | . . . . . Heaviest Build 36 | 11 29 25 34 36 Greatest Support 46 | 20 40 40 46 46 Greatest Overweight (x) 2 | . . 2 2 1 Average Overweight (x) . | . . 1 . . Largest Inventory Capacity 12 | . 12 10 10 10 Average Capacity 9 | . 9 10 10 9 Most Carried 10 | . 6 6 10 10 Average Carried 5 | . 5 4 6 8 Final Capacity 10 | 6 10 10 10 4 Final Carried 10 | 6 6 4 10 4 Class Distribution -------------------- 92% | Mutant 7% | Scavenger-Mutant Dominant Class ---------------- Mutant | -10/Materials Mutant | -10/Mines Mutant | -9/Materials Mutant | -9/Mines Resources | -11 -10 -10 -9 -9 ----------- Run | Scr Mat Min Mat Min Matter Collected 861 | 200 165 176 300 20 Remotely . | . . . . . Salvage Created 1939 | . 243 224 1332 140 Parts 98 | . 18 20 59 1 Haulers Intercepted 3 | . . . 3 . Recyclers Shooed 4 | . . . 3 1 Parts Field Recycled . | . . . . . Retrieved Matter . | . . . . . Parts Self-Destructed . | . . . . . Prevented . | . . . . . Kills | -11 -10 -10 -9 -9 ------- Run | Scr Mat Min Mat Min Combat Hostiles Destroyed 51 | . 7 11 27 6 Guns 33 | . 2 5 25 1 Cannons 18 | . 5 6 2 5 Classes Destroyed 9 | . 4 1 3 1 Tunneler 2 | . . 2 . . Hauler 3 | . . . 3 . Recycler 4 | . 1 . 3 . Watcher 3 | . 2 . 1 . Swarmer 20 | . 5 9 6 . Grunt 22 | . 2 2 16 2 Brawler 3 | . . . 3 . Sentry 2 | . . . 2 . Assembled 4 | . . . . 4 Best Kill Streak 6 | . 3 5 6 4 Combat Bots Only 6 | . 3 5 6 4 Max Kills in Single Turn 2 | . 1 1 2 1 Gunslinging 1 | . . . 1 . Exploded . | . . . . . Melee . | . . . . . Uniques/NPCs Destroyed . | . . . . . Combat | -11 -10 -10 -9 -9 -------- Run | Scr Mat Min Mat Min Damage Taken 2988 | . 258 382 1429 919 Core 497 | . 15 66 232 184 Absorbed by Shields . | . . . . . Core Remaining (%) 83 | 100 . 67 . . Volleys Fired 169 | . 23 29 95 22 Largest 2 | . 2 2 2 2 Hottest 124 | . 55 55 112 124 Shots Fired 330 | . 46 54 186 44 Gun 231 | . 23 25 157 26 Cannon 99 | . 23 29 29 18 Launcher . | . . . . . Special . | . . . . . Kinetic 158 | . 46 54 58 . Thermal 172 | . . . 128 44 Explosive . | . . . . . Electromagnetic . | . . . . . Robot Hit Streak 15 | . 14 5 15 11 Robot Miss Streak 5 | . 2 4 5 5 Penetration Max . | . . . . . Secondary Targets 6 | . . . 6 . Max Gunslinging Chain 1 | . . . 1 . Shots Hit Robots 206 | . 32 24 122 28 Core Hits 89 | . 15 16 46 12 Critical Hits 3 | . . . . 3 Critical Kills 2 | . . . . 2 Critical Parts Destroyed 1 | . . . . 1 Melee Attacks . | . . . . . Impact . | . . . . . Slashing . | . . . . . Piercing . | . . . . . Sneak Attacks . | . . . . . Combat Hostiles . | . . . . . Follow-up Attacks . | . . . . . Damage Inflicted 3335 | . 410 354 1951 620 Guns 2282 | . 171 149 1631 331 Cannons 1038 | . 239 204 310 285 Explosions . | . . . . . Melee . | . . . . . Ramming 15 | . . 1 10 4 Kinetic 1238 | . 410 353 475 . Thermal 2082 | . . . 1466 616 Explosive . | . . . . . Electromagnetic . | . . . . . Impact . | . . . . . Slashing . | . . . . . Piercing . | . . . . . Highest Corruption 2 | . 2 2 . . Average Corruption 1 | . 1 2 . . Corruption Purged . | . . . . . Effects 9 | . 2 7 . . Message Errors 2 | . 1 1 . . Heat Flow Errors 1 | . . 1 . . Energy Discharges 2 | . . 2 . . Data Loss (minor) 2 | . . 2 . . Targeting Errors 2 | . 1 1 . . Overload Shots . | . . . . . Overflow Damage 11 | . . 5 . 6 Projectiles 11 | . . 5 . 6 Explosions . | . . . . . Melee . | . . . . . Knockbacks 11 | . 4 6 1 . Impact . | . . . . . Kinetic 9 | . 4 4 1 . Secondary 2 | . . 2 . . Self-Inflicted Damage . | . . . . . Shots . | . . . . . Rammed 3 | . . 1 1 1 Targets Rammed 3 | . . 1 1 1 Kicked . | . . . . . Crushed . | . . . . . Highest Temperature 471 | . 52 240 471 132 Average Temperature 75 | . 14 37 98 45 Received Heat Transfer 729 | . 42 12 462 213 Effects 5 | . . 1 4 . Shutdowns 1 | . . . 1 . Energy Bleed 2 | . . 1 1 . Interference 2 | . . . 2 . Siege Activations . | . . . . . Robots Corrupted . | . . . . . Combat Hostiles . | . . . . . Parts Fried . | . . . . . Impact Corruptions . | . . . . . Robots Melted . | . . . . . Combat Hostiles . | . . . . . Parts Melted 6 | . . . 4 2 Heat Transferred 4440 | . . . 3182 1258 Parts Sabotaged . | . . . . . Parts Stolen . | . . . . . Parts Stripped . | . . . . . Power Chain Reactions . | . . . . . Missiles Intercepted . | . . . . . Alert | -11 -10 -10 -9 -9 ------- Run | Scr Mat Min Mat Min Peak Influence 454 | . 153 122 454 187 Average Influence 132 | . 73 61 221 174 Maximum Alert Level 2 | . . . 2 . Low Security (%) 79 | . 100 100 47 100 Level 1 15 | . . . 38 . Level 2 5 | . . . 13 . Level 3 . | . . . . . Level 4 . | . . . . . Level 5 . | . . . . . High Security . | . . . . . Max Security . | . . . . . Squads Dispatched 4 | . . . 4 . Investigation 1 | . . . 1 . Extermination . | . . . . . Reinforcement 3 | . . . 3 . Assault . | . . . . . Garrison . | . . . . . Intercept . | . . . . . Construction Impeded . | . . . . . Haulers Reinforced . | . . . . . Stealth | -11 -10 -10 -9 -9 --------- Run | Scr Mat Min Mat Min Distress Signals 2 | . . 1 1 . Communications Jammed . | . . . . . Distress Signals . | . . . . . Times Spotted 89 | . 13 12 44 20 Peak Tracking Total 10 | . 3 4 8 10 Tactical Retreats 7 | . 1 2 4 . Traps | -11 -10 -10 -9 -9 ------- Run | Scr Mat Min Mat Min Traps Triggered 2 | . 2 . . . Indirectly . | . . . . . Trap Hack Attempts . | . . . . . Triggered . | . . . . . Disarmed . | . . . . . Reprogrammed . | . . . . . Reused . | . . . . . Traps Extracted . | . . . . . Installed . | . . . . . Triggered . | . . . . . Machines | -11 -10 -10 -9 -9 ---------- Run | Scr Mat Min Mat Min Machines Disabled 1 | . . . 1 . Max in Single Turn 1 | . . . 1 . Machines Sabotaged . | . . . . . Garrisons Compromised . | . . . . . Overloaded Fab Kills . | . . . . . Fab Network Shutdowns . | . . . . . Hacking | -11 -10 -10 -9 -9 --------- Run | Scr Mat Min Mat Min Machines Accessed 3 | . 1 . 2 . Terminals 3 | . 1 . 2 . Fabricators . | . . . . . Repair Stations . | . . . . . Recycling Units . | . . . . . Scanalyzers . | . . . . . Garrison Access . | . . . . . Total Hacks 7 | . 2 . 5 . Successful 5 | . 2 . 3 . Failed 2 | . . . 2 . Catastrophic . | . . . . . Database Lockouts . | . . . . . Manual 4 | . . . 4 . Terminals 7 | . 2 . 5 . Fabricators . | . . . . . Repair Stations . | . . . . . Recycling Units . | . . . . . Scanalyzers . | . . . . . Garrison Access . | . . . . . Terminal Hacks 4 | . 2 . 2 . Prototype ID Bank 1 | . 1 . . . Branch Access Points 1 | . . . 1 . Locate Traps 1 | . . . 1 . Zone Layout 1 | . 1 . . . Fabricator Hacks . | . . . . . Repair Station Hacks . | . . . . . Recycling Unit Hacks . | . . . . . Scanalyzer . | . . . . . Garrison Access Hacks . | . . . . . Unauthorized Hacks 3 | . . . 3 . Terminals 1 | . . . 1 . Sabotage 1 | . . . 1 . Fabricators . | . . . . . Repair Stations . | . . . . . Recycling Units . | . . . . . Scanalyzers . | . . . . . Garrison Access . | . . . . . Data Cores Recovered . | . . . . . Used . | . . . . . Hacking Detections 1 | . . . 1 . Full Trace Events . | . . . . . Feedback Events . | . . . . . Feedback Blocked . | . . . . . Robot Schematics Acquired . | . . . . . Robots Built . | . . . . . Matter . | . . . . . Time . | . . . . . Total Robot Build Rating . | . . . . . Part Schematics Acquired . | . . . . . Parts Built . | . . . . . Matter . | . . . . . Time . | . . . . . Total Part Build Rating . | . . . . . Parts Repaired . | . . . . . Time . | . . . . . Parts Recycled . | . . . . . Recycled Matter . | . . . . . Retrieved Matter . | . . . . . Retrieved Components . | . . . . . Parts Scanalyzed . | . . . . . Part Schematics Acquired . | . . . . . Parts Damaged . | . . . . . Bothacking | -11 -10 -10 -9 -9 ------------ Run | Scr Mat Min Mat Min Used RIF Installer . | . . . . . Robots Hacked . | . . . . . Non-combat . | . . . . . Combat . | . . . . . Robot Hacks Applied . | . . . . . Relay Couplers Released . | . . . . . Robots Rewired . | . . . . . Allies Hacked . | . . . . . Hacks Repelled . | . . . . . Allies | -11 -10 -10 -9 -9 -------- Run | Scr Mat Min Mat Min Total Allies 2 | . . 2 . . Largest Group 2 | . . 2 . . Highest-Rated Group 41 | . . 41 . . Highest-Rated Ally 31 | . . 31 . . Total Orders . | . . . . . Ally Attacks 2 | . . 2 . . Total Damage 41 | . . 41 . . Kills . | . . . . . Allies Corrupted . | . . . . . Allies Melted . | . . . . . Intel | -11 -10 -10 -9 -9 ------- Run | Scr Mat Min Mat Min Robot Analysis Total . | . . . . . Derelict Logs Recovered 2 | . . 1 . 1 Drone Launches . | . . . . . Drone Recoveries . | . . . . . Exploration | -11 -10 -10 -9 -9 ------------- Run | Scr Mat Min Mat Min Turns Passed 2534 | . 478 933 994 129 Spaces Moved 1422 | 1 248 708 428 37 Core 4 | . . . . 4 Treads 862 | . 231 219 379 33 Legs 18 | 1 17 . . . Wheels 538 | . . 489 49 . Hover . | . . . . . Flight . | . . . . . Fastest Speed 50 | 120 120 100 100 50 Average Speed 136 | 120 157 118 153 149 Slowest Speed 180 | 120 160 180 180 180 Overloaded Moves . | . . . . . Propulsion Burnouts . | . . . . . Robots Hopped . | . . . . . Cave-ins Triggered 1 | . . . . 1 Exploration Rate (%) 39 | 2 46 101 39 8 Regions Visited 4 Branch Regions 2 Pre-discovered Areas . | . . . . . Known Exits Taken 2 | . . 1 1 . Unknown Exits Taken 2 | 1 1 . . . Scrap Searched 4 | . . 4 . . Spaces Dug . | . . . . . Terrain Destroyed . | . . . . . Melee . | . . . . . Projectile . | . . . . . AOE . | . . . . . Actions | -11 -10 -10 -9 -9 --------- Run | Scr Mat Min Mat Min Total 1700 | . 296 751 588 65 Wait 30 | . 12 4 14 . Move 1417 | . 247 707 427 36 Hop . | . . . . . Pick Up 31 | . 5 3 23 . Fast Attach 3 | . . . 3 . Attach 24 | . 4 4 12 4 Detach . | . . . . . Swap 6 | . 1 1 3 1 Drop 17 | . 4 2 10 1 Fire 169 | . 23 29 95 22 Melee . | . . . . . Ram . | . . . . . Kick . | . . . . . Crush 3 | . . 1 1 1 Escape Stasis . | . . . . . Rewire . | . . . . . Trap . | . . . . . Miscellaneous . | . . . . . Route ------- -11/Scrapyard -10/Materials (discovered 3 exits: *Mat / [*Min x2]) -10/Mines (discovered 2 exits: *Mat x2) -9/Materials (discovered 2 exits: *Mat / *Min) -9/Mines (discovered 1 exit: Mat) History --------- Turn | Location | Event 1 | -11/Scrapyard | Discovered new exit (range 0) 1 | -11/Scrapyard | Entered Materials 126 | -10/Materials | Discovered new exit (range 13) 291 | -10/Materials | Discovered new exit (range 14) 303 | -10/Materials | Build established: Mutant 442 | -10/Materials | Discovered new exit (range 9) 479 | -10/Materials | Entered Mines 689 | -10/Mines | Identified exit to Materials 927 | -10/Mines | Discovered exit to Materials (range 3) 1412 | -10/Mines | Entered Materials 1412 | -9/Materials | Evolved 2 slots: Utility x2 1871 | -9/Materials | Lost 6 parts (2n2u2w) 1940 | -9/Materials | Core integrity fell below 50% 2024 | -9/Materials | Identified exit to Mines 2174 | -9/Materials | Discovered new exit (range 18) 2406 | -9/Materials | Entered Mines 2455 | -9/Mines | Identified exit to Materials 2459 | -9/Mines | Assembled infested the area 2532 | -9/Mines | Core integrity fell below 20% 2535 | -9/Mines | Crushed by falling debris 2535 | -9/Mines | Smashed by cave-in Last Messages --------------- 02522_ as-95613 destroyed. 02522_ as-16594 destroyed. 02522_ as-85406 destroyed. 02524_ as-89077 sneak attacks. 02524_ Adv. Beam Cannon destroyed. 02525_ R-06 Scavenger destroyed. 02525_ Imp. Treads destroyed. 02525_ Lgt. Armor Plating destroyed. 02526_ Visual Processing Unit destroyed. 02526_ Imp. Medium Laser destroyed. 02527_ The unstable cave ceiling collapses. 02528_ K-01 Serf collects debris. 02529_ Hvy. Ion Engine destroyed. 02529_ Imp. Treads destroyed. 02531_ The unstable cave ceiling collapses. 02532_ K-01 Serf collects debris. 02533_ Dropped Lrg. Storage Unit. 02534_ The unstable cave ceiling collapses. 02535_ Crushed by falling debris. [Achievement: Unlikely Earthworm] Map ----- +----------------------------------------------------+ | ?????????????????????????????????????????????????? | | ?????????????????????????????????????????????????? | | ?????????????????????????????????????????????????? | | ???????????????????